Cogmind - Beta 15 @@@ ROGUE MODE // 2025.07.19 @ 23:49:23 Player: Kaeinara Result: Destroyed by Y-45 Defender with Beam Rifle Performance ------------- Evolutions (2) 1000 Regions Visited (4) 800 Robots Destroyed (39) 195 Value Destroyed (1342) 1342 Prototype IDs (3) 60 Alien Tech Used (0) 0 Bonus (0) 0 TOTAL SCORE: 3397 Bonus ------- None Cogmind --------- Core Integrity 0/550 Matter 260/300 Energy 96/100 System Corruption 0% Temperature Hot (212) Movement Core (350) Ox6 Location -8/Materials Parts ------- > --- POWER (1) -------- (None) > --- PROPULSION (4) --- (None) > --- UTILITY (4) ------ Large Storage Unit Hacking Suite > --- WEAPON (2) ------- (None) > --- INVENTORY (15) --- Faulty Heavy Ion Engine Cooled Ion Engine Aluminum Leg Aluminum Leg Aluminum Leg Wheel Medium Storage Unit Trap Scanner Improved Signal Interpreter Heavy EM Shotgun Ion Cannon Peak State ------------ > --- POWER ------------ Deuterium Engine > --- PROPULSION ------- Carbon-fiber Leg Carbon-fiber Leg Carbon-fiber Leg Carbon-fiber Leg > --- UTILITY ---------- Large Storage Unit Melee Analysis Suite Hardened Medium Armor Plating Hacking Suite > --- WEAPON ----------- Ion Cannon Katana > --- INVENTORY -------- Heavy Ion Engine Deuterium Engine Deuterium Engine Aluminum Leg Aluminum Leg Aluminum Leg Wheel Medium Storage Unit Trap Scanner Improved Signal Interpreter Ion Cannon Light Assault Rifle Improved Assault Rifle Grenade Launcher Rocket Launcher [Rating: 34] Favorites ----------- Power Deuterium Engine Engine Deuterium Engine Propulsion Carbon-fiber Leg Treads Light Treads Leg Carbon-fiber Leg Utility Large Storage Unit Storage Large Storage Unit Processor Targeting Computer Hackware Hacking Suite Protection Hardened Medium Armor Plating Weapon Ion Cannon Energy Gun Medium Laser Energy Cannon Ion Cannon Ballistic Gun Light Assault Rifle Launcher Rocket Launcher Slashing Weapon Katana Build | -11 -10 -9 -9 -8 ------- Run | Yrd Mat Mat Min Mat Slots Evolved 4 | . . 2 . 2 Power . | . . . . . Propulsion 2 | . . 2 . . Utility 2 | . . . . 2 Weapon . | . . . . . Parts Attached 27 | 6 3 10 . 8 Power 4 | 1 . 1 . 2 Engine 4 | 1 . 1 . 2 Core . | . . . . . Reactor . | . . . . . Propulsion 8 | 2 . 6 . . Treads 2 | . . 2 . . Leg 6 | 2 . 4 . . Wheel . | . . . . . Hover . | . . . . . Flight . | . . . . . Utility 7 | 1 3 . . 3 Device . | . . . . . Storage 3 | 1 2 . . . Processor 2 | . 1 . . 1 Hackware 1 | . . . . 1 Protection 1 | . . . . 1 Artifact . | . . . . . Weapon 8 | 2 . 3 . 3 Energy Gun 1 | 1 . . . . Energy Cannon 2 | . . 1 . 1 Ballistic Gun 3 | 1 . 1 . 1 Ballistic Cannon . | . . . . . Launcher 1 | . . . . 1 Special Weapon . | . . . . . Impact Weapon . | . . . . . Slashing Weapon 1 | . . 1 . . Piercing Weapon . | . . . . . Special Melee Weapon . | . . . . . Unidentified Prototypes . | . . . . . Parts Lost 13 | . . . . 13 Power 3 | . . . . 3 Propulsion 4 | . . . . 4 Utility 2 | . . . . 2 Weapon 4 | . . . . 4 Highest Loss Streak 13 | . . . . 13 To Critical Strikes . | . . . . . Average Backups 12 | 3 7 13 15 14 Power 2 | . 1 2 3 3 Propulsion 3 | 1 4 3 4 4 Utility 2 | . . 2 3 2 Weapon 3 | . 1 4 5 4 Tool/Special . | . . . . . Unused Backups 13 | . . 3 . 10 Power 3 | . . 1 . 2 Propulsion 4 | . . 1 . 3 Utility 3 | . . . . 3 Weapon 3 | . . 1 . 2 Tool/Special . | . . . . . Average Slot Usage (%) 98 | . 99 98 100 96 Engine 10 | . 14 10 11 9 Treads 1 | . . 2 . . Leg 37 | . 28 40 44 34 Storage 10 | . 14 11 11 9 Processor 10 | . 13 11 11 10 Hackware 1 | . . . . 7 Protection 2 | . . . . 8 Energy Gun 1 | . 14 1 . . Energy Cannon 8 | . . 9 11 8 Ballistic Gun 3 | . 14 3 . . Slashing Weapon 7 | . . 7 11 8 Peak Build Rating 34 | 6 7 26 26 34 Average Rating 23 | 4 6 22 26 32 On Entrance 13 | . 6 7 26 26 Naked Turns . | . . . . . Heaviest Build 45 | 13 28 38 37 45 Greatest Support 60 | 20 20 60 60 60 Greatest Overweight (x) 1 | . 1 1 . . Average Overweight (x) . | . . . . . Largest Inventory Capacity 15 | 8 15 15 15 15 Average Capacity 13 | 7 9 14 15 15 Most Carried 15 | 6 8 15 15 15 Average Carried 12 | 3 7 13 15 14 Final Capacity 15 | 8 10 15 15 15 Final Carried 15 | 6 8 15 15 11 Class Distribution -------------------- 100% | Mutant Dominant Class ---------------- Mutant | -10/Materials Mutant | -9/Materials Mutant | -9/Mines Mutant | -8/Materials Resources | -11 -10 -9 -9 -8 ----------- Run | Yrd Mat Mat Min Mat Matter Collected 524 | 198 97 199 . 30 Remotely . | . . . . . Salvage Created 1696 | . 97 1127 . 472 Parts 93 | . 6 61 . 26 Haulers Intercepted 4 | . . 3 . 1 Recyclers Shooed . | . . . . . Parts Field Recycled . | . . . . . Retrieved Matter . | . . . . . Parts Self-Destructed . | . . . . . Prevented . | . . . . . Kills | -11 -10 -9 -9 -8 ------- Run | Yrd Mat Mat Min Mat Combat Hostiles Destroyed 34 | . 2 23 . 9 Melee 20 | . . 13 . 7 Guns 2 | . 2 . . . Cannons 12 | . . 10 . 2 Classes Destroyed 6 | . 1 4 . 1 Hauler 4 | . . 3 . 1 Watcher 1 | . . . . 1 Swarmer 4 | . . 4 . . Grunt 19 | . 2 11 . 6 Duelist 2 | . . 1 . 1 Sentry 9 | . . 7 . 2 Best Kill Streak 7 | . 2 7 . 3 Combat Bots Only 7 | . 2 7 . 2 Max Kills in Single Turn 1 | . 1 1 . 1 Gunslinging . | . . . . . Exploded . | . . . . . Melee 1 | . . 1 . 1 Uniques/NPCs Destroyed . | . . . . . Combat | -11 -10 -9 -9 -8 -------- Run | Yrd Mat Mat Min Mat Hostile Shots Fired 232 | . 9 78 . 145 Missed 44 | . 1 17 . 26 Hits 188 | . 8 61 . 119 Melee 6 | . . 2 . 4 Projectile 182 | . 8 59 . 115 Critical Strikes 9 | . . 2 . 7 Damage Taken 2770 | . 107 693 . 1970 Core 771 | . 11 208 . 552 Absorbed by Shields . | . . . . . Regen/Repaired (Parts) 269 | . . 269 . . Core Remaining (%) 81 | 100 95 . 48 . Volleys Fired 64 | . 8 42 . 14 Largest 2 | . 2 2 . 2 Hottest 83 | . 70 83 . 83 Shots Fired 90 | . 16 58 . 16 Gun 36 | . 16 18 . 2 Cannon 50 | . . 40 . 10 Launcher 4 | . . . . 4 Special . | . . . . . Kinetic 26 | . 8 16 . 2 Thermal 60 | . 8 42 . 10 Explosive 4 | . . . . 4 Electromagnetic . | . . . . . Robot Hit Streak 11 | . 3 11 . 4 Robot Miss Streak 5 | . 3 2 . 5 Penetration Max . | . . . . . Secondary Targets . | . . . . . Shots Hit Robots 106 | . 8 64 . 34 Core Hits 49 | . 5 29 . 15 Critical Kills . | . . . . . Critical Parts Destroyed . | . . . . . Critical Strikes 5 | . . 1 . 4 Sever 5 | . . 1 . 4 Melee Attacks 60 | . . 31 . 29 Impact . | . . . . . Slashing 60 | . . 31 . 29 Piercing . | . . . . . Sneak Attacks 5 | . . 3 . 2 Combat Hostiles . | . . . . . Follow-up Attacks . | . . . . . Damage Inflicted 2991 | . 94 1772 . 1125 Guns 222 | . 94 128 . . Cannons 870 | . . 757 . 113 Explosions 121 | . . . . 121 Melee 1754 | . . 863 . 891 Ramming 24 | . . 24 . . Kinetic 122 | . 7 115 . . Thermal 970 | . 87 770 . 113 Explosive 121 | . . . . 121 Electromagnetic . | . . . . . Impact . | . . . . . Slashing 1754 | . . 863 . 891 Piercing . | . . . . . Highest Corruption . | . . . . . Average Corruption . | . . . . . Corruption Purged . | . . . . . Corruption Blocked . | . . . . . Overload Shots . | . . . . . Overflow Damage 47 | . . 44 . 3 Projectiles . | . . . . . Explosions . | . . . . . Melee 47 | . . 44 . 3 Knockbacks . | . . . . . Impact . | . . . . . Kinetic . | . . . . . Secondary . | . . . . . Self-Inflicted Damage . | . . . . . Shots . | . . . . . Rammed . | . . . . . Targets Rammed 4 | . . 4 . . Kicked 4 | . . 4 . . Crushed . | . . . . . Highest Temperature 220 | . 206 162 . 220 Average Temperature 71 | . 111 50 . 102 Received Heat Transfer 1404 | . 66 276 . 1062 Effects 3 | . . . . 3 Interference 3 | . . . . 3 Siege Activations . | . . . . . Martial Activations . | . . . . . Shielding Activations . | . . . . . Robots Disrupted . | . . . . . Combat Hostiles . | . . . . . Robots Corrupted . | . . . . . Combat Hostiles . | . . . . . Parts Fried . | . . . . . Impact Corruptions 1 | . . 1 . . Robots Melted . | . . . . . Combat Hostiles . | . . . . . Parts Melted . | . . . . . Heat Transferred 1702 | . 259 1258 . 185 Parts Sabotaged . | . . . . . Parts Stolen . | . . . . . Parts Stripped . | . . . . . Power Chain Reactions . | . . . . . Alert | -11 -10 -9 -9 -8 ------- Run | Yrd Mat Mat Min Mat Maximum Alert Level 1 | . . 1 . . Low Security (%) 83 | 100 100 73 100 100 Level 1 16 | . . 26 . . Level 2 . | . . . . . Level 3 . | . . . . . Level 4 . | . . . . . Level 5 . | . . . . . High Security . | . . . . . Max Security . | . . . . . Peak Influence 286 | . 54 286 106 94 Initial 106 | . . 14 106 29 Average 85 | . 10 124 95 21 Influence Increases 1037 | . 54 640 . 343 Destroy 0b10 Robot/C 680 | . 40 460 . 180 Destroy 0b10 Robot/NC 25 | . . 15 . 10 Destroy Leader 160 | . 10 116 . 34 Successful Hack 35 | . 4 15 . 16 Disable Machine 30 | . . 30 . . Destroy Structure 32 | . . 4 . 28 Lose Combat Pursuer 75 | . . . . 75 Influence Decreases 991 | . 20 401 197 373 Entered New Map 234 | . . 20 167 47 Time Decay 627 | . 20 381 30 196 Lost Part 130 | . . . . 130 Squads Dispatched 3 | . . 1 . 2 Investigation . | . . . . . Extermination . | . . . . . Reinforcement 3 | . . 1 . 2 Assault . | . . . . . Garrison . | . . . . . Intercept . | . . . . . Searches Triggered . | . . . . . Construction Impeded . | . . . . . Haulers Reinforced . | . . . . . Active Scanning Responses . | . . . . . Cargo Convoy Interrupts . | . . . . . Stealth | -11 -10 -9 -9 -8 --------- Run | Yrd Mat Mat Min Mat Distress Signals 7 | . 1 4 . 2 Communications Jammed . | . . . . . Distress Signals . | . . . . . Times Spotted 60 | . 3 30 . 27 Peak Tracking Total 12 | . 3 4 . 12 Tactical Retreats 3 | . . . . 3 Traps | -11 -10 -9 -9 -8 ------- Run | Yrd Mat Mat Min Mat Traps Triggered 2 | . . . . 2 Indirectly . | . . . . . Trap Hack Attempts . | . . . . . Triggered . | . . . . . Disarmed . | . . . . . Reprogrammed . | . . . . . Reused . | . . . . . Traps Extracted . | . . . . . Installed . | . . . . . Triggered . | . . . . . Machines | -11 -10 -9 -9 -8 ---------- Run | Yrd Mat Mat Min Mat Machines Disabled 2 | . . 2 . . Max in Single Turn 1 | . . 1 . . Machines Repaired . | . . . . . Machines Dismantled . | . . . . . Machines Sabotaged . | . . . . . Overloaded Fab Kills . | . . . . . Hacking | -11 -10 -9 -9 -8 --------- Run | Yrd Mat Mat Min Mat Machines Accessed 18 | . 3 8 . 7 Terminals 14 | . 3 5 . 6 Fabricators . | . . . . . Repair Stations 3 | . . 2 . 1 Recycling Units . | . . . . . Scanalyzers 1 | . . 1 . . Garrison Access . | . . . . . Total Hacks 45 | . 6 22 . 17 Successful 30 | . 3 17 . 10 Failed 15 | . 3 5 . 7 Catastrophic 2 | . 1 . . 1 Database Lockouts . | . . . . . Manual 24 | . 5 7 . 12 Terminals 30 | . 6 9 . 15 Fabricators . | . . . . . Repair Stations 13 | . . 11 . 2 Recycling Units . | . . . . . Scanalyzers 2 | . . 2 . . Garrison Access . | . . . . . Terminal Hacks 6 | . 1 2 . 3 Prototype ID Bank 1 | . 1 . . . Branch Access Points 1 | . . . . 1 Emergency Access Points 1 | . . . . 1 Terminal Index 1 | . . 1 . . Alert Level 1 | . . . . 1 Hauler Manifests 1 | . . 1 . . Fabricator Hacks . | . . . . . Repair Station Hacks 11 | . . 10 . 1 Scan Component 6 | . . 5 . 1 Repair 5 | . . 5 . . Recycling Unit Hacks . | . . . . . Scanalyzer 2 | . . 2 . . Insert Component 1 | . . 1 . . Analyze 1 | . . 1 . . Garrison Access Hacks . | . . . . . Unauthorized Hacks 11 | . 2 3 . 6 Terminals 11 | . 2 3 . 6 Botnet 11 | . 2 3 . 6 Fabricators . | . . . . . Repair Stations . | . . . . . Recycling Units . | . . . . . Scanalyzers . | . . . . . Garrison Access . | . . . . . Data Cores Recovered . | . . . . . Used . | . . . . . Hacking Detections 18 | . 3 8 . 7 Full Trace Events . | . . . . . Feedback Events . | . . . . . Feedback Blocked . | . . . . . Robot Schematics Acquired . | . . . . . Robots Built . | . . . . . Authchips . | . . . . . Time . | . . . . . Total Robot Build Rating . | . . . . . Part Schematics Acquired . | . . . . . Parts Built . | . . . . . Authchips . | . . . . . Time . | . . . . . Total Part Build Rating . | . . . . . Parts Repaired 5 | . . 5 . . Time 190 | . . 190 . . Parts Recycled . | . . . . . Recycled Matter . | . . . . . Retrieved Matter . | . . . . . Retrieved Components . | . . . . . Parts Scanalyzed 1 | . . 1 . . Part Schematics Acquired . | . . . . . Parts Damaged . | . . . . . Bothacking | -11 -10 -9 -9 -8 ------------ Run | Yrd Mat Mat Min Mat Used RIF Installer . | . . . . . Robots Hacked . | . . . . . Non-combat . | . . . . . Combat . | . . . . . Robot Hacks Applied . | . . . . . Relay Couplers Released . | . . . . . Fabnet Peak Effective % . | . . . . . Robots Rewired . | . . . . . Allies Hacked . | . . . . . Hacks Repelled . | . . . . . Allies | -11 -10 -9 -9 -8 -------- Run | Yrd Mat Mat Min Mat Total Allies . | . . . . . Largest Group . | . . . . . Highest-Rated Group . | . . . . . Highest-Rated Ally . | . . . . . Total Orders . | . . . . . Ally Attacks . | . . . . . Total Damage . | . . . . . Kills . | . . . . . Allies Corrupted . | . . . . . Allies Melted . | . . . . . Intel | -11 -10 -9 -9 -8 ------- Run | Yrd Mat Mat Min Mat Active Infowar (turns) . | . . . . . Robot Analysis Total . | . . . . . Derelict Logs Recovered 1 | . . . 1 . Drone Launches . | . . . . . Drone Recoveries . | . . . . . Exploration | -11 -10 -9 -9 -8 ------------- Run | Yrd Mat Mat Min Mat Turns Passed 2654 | 59 216 1648 60 671 Spaces Moved 1404 | 37 139 821 49 358 Core 4 | 4 . . . . Treads . | . . . . . Legs 1400 | 33 139 821 49 358 Wheels . | . . . . . Hover . | . . . . . Flight . | . . . . . Fastest Speed 50 | 50 120 120 120 120 Average Speed 121 | 112 121 122 120 120 Slowest Speed 190 | 120 190 190 120 120 Overloaded Moves . | . . . . . Propulsion Burnouts . | . . . . . Robots Hopped . | . . . . . Potential Cave-ins . | . . . . . Cave-ins Triggered . | . . . . . Exploration Rate (%) 29 | 3 26 47 24 45 Regions Visited 4 Branch Regions 1 Pre-discovered Areas 1 | . . . 1 . Known Exits Taken . | . . . . . Unknown Exits Taken 4 | 1 1 1 1 . Scrap Searched . | . . . . . Spaces Dug . | . . . . . Terrain Destroyed 40 | . . 3 . 37 Melee . | . . . . . Projectile 5 | . . 3 . 2 AOE 35 | . . . . 35 Terrain Rammed . | . . . . . Walls Destroyed . | . . . . . Machines Disabled . | . . . . . Actions | -11 -10 -9 -9 -8 --------- Run | Yrd Mat Mat Min Mat Total 2177 | 54 172 1360 50 541 Wait 562 | . 18 420 2 122 Move 1400 | 36 138 820 48 358 Hop . | . . . . . Pick Up 39 | 12 4 17 . 6 Fast Attach 7 | . . 7 . . Attach 18 | 6 1 4 . 7 Detach . | . . . . . Swap 9 | . 2 6 . 1 Drop 14 | . 1 9 . 4 Fire 64 | . 8 42 . 14 Melee 60 | . . 31 . 29 Ram . | . . . . . Kick 4 | . . 4 . . Crush . | . . . . . Escape Stasis . | . . . . . Rewire . | . . . . . Trap . | . . . . . Miscellaneous . | . . . . . Route ------- -11/Scrapyard -10/Materials -9/Materials -9/Mines -8/Materials (discovered 1 exit: Sto) History --------- Turn | Location | Event 25 | -11/Scrapyard | Discovered new exit (range 16) 60 | -11/Scrapyard | Entered Materials 257 | -10/Materials | Discovered new exit (range 14) 276 | -10/Materials | Entered another Materials area 276 | -9/Materials | Evolved 2 slots: Propulsion x2 317 | -9/Materials | Build established: Mutant 1319 | -9/Materials | Repaired Carbon-fiber Leg 1359 | -9/Materials | Repaired Carbon-fiber Leg 1398 | -9/Materials | Repaired Carbon-fiber Leg 1519 | -9/Materials | Core integrity fell below 50% 1541 | -9/Materials | Destroyed 7 combat bots 1785 | -9/Materials | Repaired Deuterium Engine 1825 | -9/Materials | Repaired Carbon-fiber Leg 1912 | -9/Materials | Discovered new exit (range 8) 1924 | -9/Materials | Entered Mines 1925 | -9/Mines | Learned location of Storage (-8) 1955 | -9/Mines | Found a hidden stash of uninstalled traps 1974 | -9/Mines | Discovered new exit (range 8) 1984 | -9/Mines | Entered Materials 1984 | -8/Materials | Evolved 2 slots: Utility x2 2137 | -8/Materials | Identified exit to Storage 2635 | -8/Materials | Core integrity fell below 50% 2650 | -8/Materials | Core integrity fell below 20% 2655 | -8/Materials | Destroyed by Y-45 Defender with Beam Rifle Last Messages --------------- Nuclear Core. 02635_ U-05 Engineer lays Concrete. 02636_ Overheating: System interference. 02636_ Imp. Assault Rifle temporarily disabled. 02636_ Melee Analysis Suite temporarily disabled. 02636_ Imp. Assault Rifle temporarily disabled. 02636_ U-05 Engineer lays Concrete. 02637_ U-05 Engineer builds a Wall. 02642_ Melee Analysis Suite destroyed. 02644_ U-05 Engineer builds a Wall. 02646_ Critical hit (Burn: +37). 02647_ U-05 Engineer builds a Wall. 02647_ Critical hit (Burn: +37). 02648_ U-05 Engineer builds a Wall. 02649_ M-13 Machinist repairs Y-45 Defender. 02650_ Deuterium Engine destroyed. 02654_ Ion Cannon destroyed. 02654_ Imp. Assault Rifle destroyed. [Achievement: Back For More] Map ----- +----------------------------------------------------+ | ??????????????????????### [????????# #""" #??# | | ??????????????????????"S " ####### #""" #??# | | ??????????????????????""" T + + ]#??# | | ?????????????????????? "" " ! # # ! #??? | | ???????????????????????## ??# ########??? | | ????????????????????????# ????# #???????? | | ????????????????????????#??????# #???????? | | ???????????????????????????????+ + ]! !? | | ???????????????????????????????# # [! # | | ???????????????????????????????# #?????##? | | ???????????????????????????????# ###### #???????? | | ???????????????????#???????????# #????? #???????? | | ???????????????????# ########### #????? #???????? | | ???????????????????# #????? #???????? | | ???????????????????#### ########/###### #???????? | | ??????????????????????# #?????# + ##??????? | | ??????????????????????# #?????# # T#??????? | | ??????????????????????# #?????# # #???????? | | ??????????????????????# #?????# # #???????? | | ??????????????????????# ####### # #######?? | | ??????????????????????# # + =#! #?? | | ??????????????????????# # ! g# [#%= #?? | | ??????????????????????# # # ==+%[ + | | ?????????????###??????# #= # %#=* # | | ?????????????# #### # # !### #?? | | ?????????????# T" #@ # #?# #?? | | ?????????? " g= # #?# #?? | | ???????????### #%g #######?# #?? | | ?????????????# #### a[Y #???????# ##?? | | ?????????????#####????#? % # ?????? ?? | | ???????????????????????? # ?????##### ###? | | ???????????????????????? ## #?????????####??? | | ??????????????????????? # # ??????????????? | | ??????????????????????? #### !?????????????? | | ???????????????????????# ga ==????????????? | | ???????????????????????### ## ==????????????? | | ?????????????????????????? ## ## ?!!????????????? | | ??????????????????????????+#?##? ??????????????? | | ?????????????????????????? ??????????????????????? | | ?????????????????????????? ??????????????????????? | | ?????????????????????????? ??????????????????????? | | ?????????????????????????????????????????????????? | | ?????????????????????????????????????????????????? | | ?????????????????????????????????????????????????? | | ?????????????????????????????????????????????????? | | ?????????????????????????????????????????????????? | | ?????????????????????????????????????????????????? | | ?????????????????????????????????????????????????? | | ?????????????????????????????????????????????????? | | ?????????????????????????????????????????????????? | +----------------------------------------------------+ Best States ------------- Heat Dissipation 31 Energy Generation 14 Energy Capacity 275 Matter Stores 300 Matter Capacity 300 Sight Range 16 Terrain Scan Density 10 Armor Coverage 225 Evasion (%) 55 Targeting Accuracy 5 Melee Accuracy 5 Offensive Hacking 10 Item Schematics ----------------- None Robot Schematics ------------------ None Fabricated ------------ Nothing Repaired ---------- Carbon-fiber Leg | 47% | -9/Materials Carbon-fiber Leg | 60% | -9/Materials Carbon-fiber Leg | 58% | -9/Materials Deuterium Engine | 32% | -9/Materials Carbon-fiber Leg | 36% | -9/Materials Alien Tech Used ----------------- None Achievements -------------- Back For More Challenges ------------ None Game ------ Seed PartitionTiamatStrikerail Manual? 0 Play Time 00:33:47 Cumulative 33.6 hours Start 2025.07.19 @ 23:14:23 End 2025.07.19 @ 23:49:23 Sessions 1 Manual Loads 0 Difficulty Rogue Special Mode None Game No. 53 Rogue 53 Adventurer 0 Explorer 0 Win Type - Total 0 Types 0/0/0/0/0/0/0/0/0/0 Lore% 16 Gallery% 27 Achievement% 21 Wizard Run 0 Options --------- Layout 1 ASCII 0 Keyboard 0 Movement Mouse Keybinds 0 Fullscreen 1 Font 24/Smallcaps Map View 50x35 Zoom Use 0% Tactical HUD 1 Map Filters NONE Filters NONE Steam 1 RUN: 9c46f045-0983-4892-ad6b-382703f74470